bitfinex/quotes_ETHUSD_20241212
["timestamp","ask_amount","ask_price","bid_price","bid_amount"]
[1733974133334,1.3974,3914.4,3913.0,3.95068678]
[1733974133335,1.3974,3914.4,3913.7,1.27754]
[1733974133494,1.3974,3914.4,3913.2,1.27769]
[1733974133690,1.3974,3914.4,3913.7,1.27755]
[1733974134047,1.3974,3914.4,3913.3,3.0]
[1733974134342,1.3974,3914.4,3913.6,1.27756]
[1733974134634,1.3974,3914.4,3913.2,1.0621176]
[1733974134802,1.3974,3914.4,3913.5,1.27762]
[1733974135148,0.03193898,3914.3,3913.0,5.22846678]
[1733974135287,2.58669898,3914.3,3913.0,3.95068678]
[1733974136136,0.03193898,3914.3,3913.0,3.95068678]
[1733974136319,2.55481,3914.2,3913.0,3.95068678]
[1733974136639,0.03193898,3914.3,3913.0,3.95068678]
[1733974136793,0.43033788,3914.3,3913.0,3.95068678]
[1733974136995,0.43033788,3914.3,3913.0,5.22845678]
[1733974137233,1.379,3914.1,3913.1,0.10223223]
[1733974137437,1.41094522,3914.1,3913.0,3.95068678]
[1733974137640,1.379,3914.1,3913.1,0.44735435]
[1733974137842,1.379,3914.1,3913.0,3.95068678]
[1733974137843,1.379,3914.1,3913.2,0.10223207]
[1733974138141,1.379,3914.1,3913.0,3.95068678]
[1733974138315,1.379,3914.1,3913.1,0.1023072]
[1733974138500,1.379,3914.1,3913.0,3.95068678]
[1733974138700,1.379,3914.1,3913.1,0.10230758]
[1733974138997,1.379,3914.1,3913.0,3.95068678]
[1733974139404,1.379,3914.1,3913.1,0.10230756]
[1733974139627,0.03194379,3914.0,3912.7,1.27788]
[1733974139832,0.03194379,3914.0,3912.8,0.10234221]
[1733974140031,0.03194379,3914.0,3912.9,0.10234221]
[1733974140243,0.03194379,3914.0,3912.9,1.27782]
[1733974140395,1.379,3914.1,3913.0,0.10233495]
[1733974140605,1.379,3914.1,3913.1,1.38006797]
[1733974140815,1.379,3914.1,3913.2,0.63540344]
[1733974141137,1.379,3914.1,3913.3,0.10230347]
[1733974141498,1.379,3914.1,3913.4,0.10231184]
[1733974141694,1.379,3914.1,3913.8,1.27751]
[1733974141927,1.2834,3915.1,3913.9,0.1022933]
[1733974142244,1.2834,3915.1,3914.2,3.95027151]
[1733974142563,1.25,3915.5,3915.3,1.27702]
[1733974142732,1.25,3915.5,3915.4,0.1022933]
[1733974143313,1.25,3915.5,3915.3,1.27702]
[1733974143717,1.25,3915.5,3915.4,0.10213339]
[1733974143977,1.25,3915.5,3914.8,3.95027151]
[1733974144118,1.25,3915.5,3915.3,1.277]
[1733974144323,1.25,3915.5,3915.4,3.95027151]
[1733974144521,1.2834,3916.7,3916.1,1.27676]
[1733974144717,1.2834,3916.7,3916.2,1.27673]
[1733974145227,1.2834,3916.7,3916.5,1.27664]
[1733974145556,1.2834,3916.7,3916.4,1.27666]
[1733974145759,0.03191602,3916.6,3915.5,4.27695]
[1733974145945,1.2834,3916.7,3915.6,2.23333933]
[1733974146116,1.2834,3916.7,3916.2,1.27674]
[1733974146321,1.2834,3916.7,3916.1,1.27676]
[1733974146616,0.03191789,3916.6,3916.1,1.27676]
[1733974147087,1.2834,3916.7,3916.1,1.27676]
[1733974147421,1.2834,3916.7,3916.2,1.27674]
[1733974148163,1.2834,3916.7,3915.9,1.27682]
[1733974148363,1.2834,3916.7,3915.7,3.0]
[1733974148364,1.2834,3916.7,3916.0,1.2768]
[1733974148867,1.41174,3916.7,3915.3,5.00878073]
[1733974149169,1.41174,3916.7,3914.3,0.49291015]
[1733974149170,2.55354,3916.2,3914.7,3.94666313]
[1733974149456,1.40052906,3916.1,3914.8,1.27719]
[1733974149656,0.39540691,3916.0,3914.7,3.94666313]
[1733974149973,0.39540691,3916.0,3914.1,5.00878073]
[1733974149974,1.3686,3915.4,3914.1,5.00878073]
[1733974150267,1.3686,3916.6,3914.7,3.94666313]
[1733974150468,0.03192534,3916.5,3914.8,3.57222284]
[1733974150634,1.3686,3916.4,3914.9,0.97908151]
[1733974150863,1.3686,3916.4,3914.1,2.90988088]
[1733974150864,1.3686,3915.7,3914.2,1.0621176]
[1733974151060,1.3686,3915.5,3914.1,5.22407313]
[1733974151258,0.031934,3915.4,3914.4,1.27732]
[1733974151679,0.031934,3915.4,3914.1,6.28619073]
[1733974151843,1.3686,3915.2,3914.2,0.87811612]
[1733974152181,0.0319349,3915.1,3914.1,5.22407313]
[1733974152353,0.0319349,3915.1,3914.1,3.94666313]
[1733974152981,1.3686,3915.2,3914.2,1.27739]
[1733974153185,1.3686,3915.2,3914.3,1.27735]
[1733974153964,1.3686,3915.2,3914.1,5.00878073]
[1733974153965,1.3686,3915.2,3914.2,3.0]
[1733974154258,1.3686,3915.2,3914.6,5.00878073]
[1733974154453,1.3686,3915.2,3914.7,2.19788827]
[1733974154641,1.3686,3916.2,3915.0,1.0217]
[1733974154841,1.3686,3916.2,3915.4,1.0216]
[1733974155089,1.523622,3916.2,3915.4,1.0216]
[1733974155585,1.5555476,3916.2,3915.0,1.0621176]
[1733974155753,1.55555061,3916.2,3915.1,2.19826991]
[1733974155959,1.55555061,3916.2,3915.0,1.0217]
[1733974156168,1.55555061,3916.2,3915.1,2.19836235]
[1733974156368,0.15555506,3916.1,3915.1,1.02167]
[1733974156691,0.15555506,3916.1,3915.2,1.02165]
[1733974157152,0.15555506,3916.1,3914.9,1.0621176]
[1733974157356,1.3686,3916.2,3915.3,1.02161]
[1733974157738,1.3686,3916.2,3915.0,2.0838076]
[1733974158095,1.40052583,3916.1,3914.8,1.02175]
[1733974158288,2.55374,3915.9,3914.9,0.87931497]
[1733974158595,1.40052982,3915.9,3914.7,1.02178]
[1733974158760,1.76400598,3915.9,3914.8,2.19843483]
[1733974158957,1.76400598,3915.9,3914.9,0.87937393]
[1733974158958,1.3686,3915.9,3914.9,0.87937393]
[1733974159170,1.3686,3915.9,3915.2,3.94666313]
[1733974159476,1.3686,3915.9,3915.3,1.90092051]
[1733974159678,1.3686,3915.9,3915.4,1.90089051]
[1733974159846,1.3686,3915.9,3915.4,1.02159]
[1733974160188,1.3686,3915.9,3915.4,1.63561981]
[1733974160402,0.03192483,3917.2,3916.0,1.02144]
[1733974160403,1.3686,3916.5,3916.0,1.02144]
[1733974160693,1.3686,3916.5,3916.1,1.02141]
[1733974161587,1.3686,3916.5,3916.2,1.02138]
[1733974162379,1.3686,3916.5,3915.8,5.00878073]
[1733974162579,1.4042,3917.3,3915.9,4.94101631]
[1733974162799,1.4042,3917.3,3916.1,1.02142]
[1733974162949,1.4042,3917.3,3916.4,3.94666313]
[1733974163157,1.4042,3917.9,3917.0,3.94666313]
[1733974163459,1.4042,3917.9,3917.1,3.25821703]
[1733974163659,1.4042,3917.9,3917.5,1.02105]
[1733974163892,0.005,3918.0,3917.5,1.02105]
[1733974163893,0.005,3918.0,3917.6,3.94666313]
[1733974164051,0.005,3918.0,3917.8,1.02097]
[1733974164269,0.005,3918.0,3917.8,3.21559209]
[1733974164499,22.70779177,3918.1,3917.9,0.8778806]
[1733974164661,22.70779177,3918.1,3917.8,1.02097]
[1733974164849,22.70779177,3918.1,3917.6,3.94666313]
[1733974165251,1.4042,3918.0,3917.0,1.0621176]
[1733974165469,1.4042,3918.0,3916.9,3.94666313]
[1733974165470,0.03190738,3917.9,3916.9,3.94666313]
[1733974165672,1.43611273,3918.0,3916.9,3.94666313]
[1733974166284,1.4042,3918.0,3917.0,2.19330528]
[1733974166609,1.4042,3918.0,3917.1,0.96882211]
[1733974166764,1.4042,3918.0,3917.4,1.02106]
[1733974166964,1.4042,3918.0,3917.1,1.1536176]
[1733974167214,1.4042,3918.0,3916.9,5.00878073]
[1733974167392,1.4042,3918.0,3917.0,2.19300252]
[1733974167593,1.4042,3918.0,3917.4,1.02107]
[1733974167992,1.4042,3918.0,3916.9,5.00878073]
[1733974168194,1.4042,3918.0,3917.5,1.02104]
[1733974168694,1.4042,3918.0,3917.4,1.02108]
[1733974168906,1.4042,3918.0,3916.9,3.49666313]
[1733974169064,2.41119918,3917.9,3917.1,1.02115]
[1733974169270,2.41119918,3917.9,3916.9,4.51785313]
[1733974169504,0.03190943,3917.8,3916.9,3.49666313]
[1733974169679,2.41119918,3917.9,3916.9,3.49666313]
[1733974169881,1.4042,3918.0,3916.9,3.49666313]
[1733974170083,22.70779177,3918.1,3917.5,3.94666313]
[1733974170374,22.70779177,3918.1,3917.9,1.02094]
[1733974172968,22.70779177,3918.1,3917.6,3.0915]
[1733974173429,22.70779177,3918.1,3917.5,3.94666313]
[1733974173813,22.70779177,3918.1,3917.9,1.02095]
[1733974174124,22.70779177,3918.1,3917.7,1.02099]
[1733974174329,22.70779177,3918.1,3917.8,1.02097]
[1733974174530,1.4042,3918.0,3917.5,3.94666313]
[1733974174698,22.70779177,3918.1,3917.0,2.08044554]
[1733974174699,22.70779177,3918.1,3917.0,3.0]
[1733974174908,22.70779177,3918.1,3917.2,1.02111]
[1733974175231,22.70779177,3918.1,3917.0,3.0]
[1733974175386,0.03190795,3918.0,3917.2,1.02113]
[1733974175583,22.70779177,3918.1,3917.0,3.0]
[1733974176038,22.70779177,3918.1,3917.6,1.02102]
[1733974177088,22.70779177,3918.1,3917.0,3.0]
[1733974177292,0.03190616,3918.0,3917.0,1.81795031]
[1733974177506,1.2506,3917.9,3916.5,1.020969]
[1733974177792,22.70779177,3918.1,3918.0,1.02092]
[1733974177793,20.15553177,3918.1,3918.0,1.02092]
[1733974178110,2.00132,3919.0,3918.9,1.11219]
[1733974178322,2.00132,3919.0,3918.9,6.513978]
[1733974178635,3.85011537,3919.2,3919.1,1.02064]
[1733974178942,3.85011537,3919.2,3919.1,1.12167677]
[1733974179105,3.85011537,3919.2,3919.1,1.02064]
[1733974179493,1.01766988,3919.2,3919.1,1.02064]
[1733974179693,1.01766988,3919.2,3919.1,1.52652031]
[1733974180104,1.01766988,3919.2,3918.9,3.94666313]
[1733974180327,1.01766988,3919.2,3918.3,3.94666313]
[1733974180707,1.01766988,3919.2,3918.8,1.02071]
[1733974180956,1.01766988,3919.2,3918.3,4.07359321]
[1733974181096,1.01766988,3919.2,3918.7,1.02073]
[1733974181505,1.01766988,3919.2,3918.3,4.07359321]
[1733974181690,1.01459713,3919.2,3918.7,1.02072]
[1733974182008,1.01459713,3919.2,3918.5,1.02078]
[1733974182226,1.01459713,3919.2,3918.3,4.07359321]
[1733974183395,1.01459713,3919.2,3918.3,3.94666313]
[1733974184641,1.01459713,3919.2,3918.4,1.02081]
[1733974184889,1.01459713,3919.2,3918.5,1.02078]
[1733974185382,1.2506,3919.0,3918.1,0.12657307]
[1733974185533,0.03190129,3918.9,3918.1,0.12657307]
[1733974185733,1.2506,3918.7,3917.0,1.05960754]
[1733974185974,1.2506,3917.6,3917.1,0.10126793]
[1733974186169,2.55278,3917.3,3915.6,1.11304]
[1733974186333,0.03191752,3917.3,3915.9,2.042742]
[1733974186532,2.58471752,3917.3,3916.0,0.21441742]
[1733974186734,2.58471752,3917.3,3915.7,1.02152]
[1733974187031,2.58471752,3917.3,3915.8,1.12289397]
[1733974187237,1.2506,3917.4,3916.1,1.0214]
[1733974187535,1.2506,3917.4,3916.9,1.0212]
[1733974188051,1.2506,3918.7,3917.2,1.02112]
[1733974188361,1.28250716,3918.7,3917.3,0.10145717]
[1733974188560,1.28250716,3918.7,3917.2,1.02112]
[1733974189133,1.28250716,3918.7,3916.7,0.0915]
[1733974189335,1.01459713,3919.2,3916.7,0.0915]
[1733974189336,0.03190715,3919.1,3917.0,4.05960754]
[1733974189533,0.03190715,3919.1,3917.2,3.0]
[1733974189534,0.03190478,3919.1,3917.2,3.0]
[1733974189761,0.03190478,3919.1,3917.1,4.20801537]
[1733974189762,2.55168,3919.0,3917.4,1.02106]
[1733974189964,1.28250456,3918.9,3917.5,0.10148718]
[1733974190162,1.2506,3918.9,3917.5,0.09858808]
[1733974190388,1.2506,3918.9,3917.5,1.02105]
[1733974190676,1.2506,3918.9,3917.0,3.0]
[1733974190851,0.12825045,3918.8,3917.4,1.02107]
[1733974191351,0.12825045,3918.8,3917.8,1.02097]
[1733974192462,0.12825045,3918.8,3917.3,0.12825873]
[1733974192691,0.12825045,3918.8,3917.6,1.02102]
[1733974192903,0.03190193,3918.7,3917.3,1.14933873]
[1733974193064,1.2859,3918.5,3917.3,1.14933873]
[1733974193269,1.2859,3918.5,3917.3,0.12825873]
[1733974193482,2.5521,3918.4,3917.3,0.12825873]
[1733974193866,1.2859,3918.2,3916.5,1.05960754]
[1733974194056,1.2859,3918.2,3915.7,0.68897785]
[1733974194057,2.55301,3917.0,3915.8,0.12500796]
[1733974194260,2.55301,3917.0,3915.3,2.11921508]
[1733974194261,1.2859,3916.8,3915.1,1.05960754]
[1733974194509,1.2859,3916.8,3915.4,0.12587483]
[1733974194715,0.03191861,3916.7,3915.4,0.12587483]
[1733974195001,3.87095018,3916.8,3915.4,0.12587483]
[1733974195408,1.2859,3916.8,3915.6,1.02154]
[1733974195601,1.2859,3916.8,3915.7,1.02151]
[1733974195912,1.2859,3916.8,3915.5,1.02158]
[1733974196063,0.03191779,3916.7,3915.6,0.51690448]
[1733974196406,1.2859,3916.8,3915.4,0.12587483]
[1733974196619,1.2859,3916.8,3915.6,1.02154]
[1733974197183,1.2859,3916.8,3915.4,0.12587483]
[1733974197374,1.2859,3916.8,3915.7,1.02152]
[1733974197580,1.2859,3916.8,3915.8,1.02149]
[1733974197817,1.2859,3916.8,3915.4,0.12587483]
[1733974198131,1.2859,3916.4,3915.1,1.05960754]
[1733974198310,1.2859,3916.4,3915.0,4.96836313]
[1733974198311,0.03192577,3916.3,3915.0,4.96836313]
[1733974198913,1.2859,3916.2,3914.4,3.94666313]
[1733974199114,1.2859,3916.2,3913.9,2.11921508]
[1733974199115,1.2859,3915.5,3914.0,2.08156754]
[1733974199410,1.2859,3915.5,3914.2,1.0219]
[1733974199573,1.2859,3915.5,3914.3,1.02188]
[1733974199812,1.2859,3915.5,3913.8,3.94666313]
[1733974200026,1.2859,3915.5,3914.0,1.02197]
[1733974200214,1.2859,3915.5,3914.2,1.02192]
[1733974200539,1.2859,3915.5,3914.1,0.92435822]
[1733974200697,1.2859,3915.5,3914.2,0.87751]
[1733974201044,1.2859,3915.3,3914.0,1.02195]
[1733974201225,1.2859,3915.3,3913.8,3.94666313]
[1733974201226,2.58609489,3915.2,3913.8,3.94666313]
[1733974201399,2.58609489,3915.2,3913.9,0.50062707]
[1733974201594,2.5544,3914.9,3913.9,0.50062707]
[1733974201891,0.03193489,3915.2,3913.9,0.50062707]
[1733974202455,1.2859,3915.3,3913.9,0.50062707]
[1733974202647,1.2859,3915.3,3914.1,4.02194]
[1733974202800,1.2859,3915.3,3914.2,3.05995671]
[1733974202991,1.2859,3915.3,3913.9,3.0]
[1733974203196,0.25,3916.9,3913.4,2.11921508]
[1733974203197,1.31783385,3915.2,3914.0,0.87693365]
[1733974203445,1.31783385,3915.2,3913.4,2.11921508]
[1733974203446,2.55423,3915.1,3913.4,1.05960754]
[1733974203741,0.03193732,3915.0,3913.8,1.02201]
[1733974203955,0.03193732,3915.0,3913.2,5.13610052]
[1733974203956,0.41913105,3915.0,3913.2,5.13610052]
[1733974204114,1.2859,3914.9,3913.5,1.02209]
[1733974204311,1.2859,3914.9,3913.2,4.07649298]
[1733974204524,1.2859,3914.9,3913.4,1.05960754]
[1733974204722,1.2859,3914.9,3913.3,5.19117462]
[1733974204723,1.2859,3914.9,3913.6,1.02205]
[1733974204925,0.03193691,3914.8,3913.3,3.0]
[1733974205092,1.2859,3914.7,3913.4,1.02212]
[1733974205298,1.2859,3914.7,3913.3,3.0]
[1733974205299,1.2859,3914.7,3913.7,1.00201669]
[1733974206149,0.031939,3914.6,3913.0,0.12551708]
[1733974206353,2.55469,3914.4,3912.9,1.02224]
[1733974206504,1.2859,3914.2,3913.1,1.0222]
[1733974207201,1.2859,3914.2,3913.1,3.94666313]
[1733974207652,1.2859,3914.2,3913.2,3.0]
[1733974207799,1.2859,3914.2,3912.8,0.13027644]
[1733974208152,1.2859,3914.2,3913.5,1.02209]
[1733974208640,1.2859,3914.2,3912.8,0.13027644]
[1733974208811,1.2859,3914.2,3913.1,1.02218]
[1733974209141,1.2859,3914.2,3912.8,0.13027644]
[1733974209344,1.2859,3914.2,3913.2,1.02217]
[1733974209549,1.2859,3914.2,3912.9,3.0]
[1733974209950,1.2859,3914.2,3913.2,1.02217]
[1733974210250,1.2859,3914.2,3913.1,1.02218]
[1733974210405,1.2859,3914.2,3913.0,1.02222]
[1733974210603,1.2859,3914.2,3913.2,1.02218]
[1733974210832,1.2859,3914.2,3913.5,1.02208]
[1733974211040,1.2859,3914.2,3913.6,1.02206]
[1733974212101,1.2859,3914.2,3913.1,0.55866602]
[1733974212302,0.0319381,3914.1,3913.1,0.55866602]
[1733974212512,1.2859,3914.2,3913.2,0.3558666]
[1733974213156,1.31784136,3914.2,3912.5,1.02236]
[1733974213302,1.3424,3914.1,3912.3,1.02241]
[1733974213657,2.55515,3913.7,3912.3,1.02241]
[1733974213859,2.55515,3913.7,3911.7,1.02256]
[1733974213860,1.3424,3913.0,3911.7,1.02256]
[1733974214146,1.3424,3913.0,3911.2,4.62867123]
[1733974214147,1.37435244,3913.0,3911.8,0.2044769]
[1733974214451,1.3424,3912.7,3911.2,3.60597123]
[1733974214620,2.55613,3912.2,3910.9,1.02238]
[1733974214834,2.55613,3912.2,3911.0,4.0]
[1733974214835,0.03196058,3912.1,3911.0,4.0]
[1733974215031,0.03196027,3912.2,3911.0,4.0]
[1733974215371,0.0319584,3912.2,3911.1,0.4]
[1733974215537,0.03195839,3912.2,3910.2,5.32916229]
[1733974215758,1.3424,3912.1,3910.2,5.32916229]
[1733974216050,0.03196039,3912.0,3910.6,0.12538035]
[1733974216233,0.03196039,3912.0,3910.7,1.02282]
[1733974216437,0.03196039,3912.0,3910.6,0.12538035]
[1733974216438,0.03196039,3912.0,3911.0,1.02275]
[1733974216641,0.03196075,3911.9,3911.0,1.02275]
[1733974216955,1.3424,3912.1,3910.8,1.0228]
[1733974217158,1.3424,3912.1,3911.7,1.02256]
[1733974217323,0.03195348,3912.0,3910.9,1.02277]
[1733974217674,0.03195348,3912.0,3909.9,1.022667]
[1733974217675,1.3424,3911.9,3909.9,1.022667]
[1733974217853,1.3424,3911.9,3909.7,0.3506]
[1733974217854,1.3424,3911.8,3909.7,0.3506]
[1733974218024,1.3424,3911.8,3909.4,1.022777]
[1733974218357,1.3424,3911.6,3908.6,0.3506]
[1733974218535,0.13743535,3912.0,3908.6,0.3506]
[1733974218536,2.55677,3911.2,3909.2,0.13014608]
[1733974218866,1.3424,3911.0,3909.3,1.0232]
[1733974219169,1.3424,3911.0,3909.7,1.02309]
[1733974219369,1.3424,3911.0,3910.1,1.02298]
[1733974219576,1.3424,3911.0,3910.2,1.1508134]
[1733974219729,1.3424,3911.0,3910.2,0.1278734]
[1733974219929,1.3424,3911.0,3909.2,0.13014608]
[1733974219930,0.03196633,3910.9,3909.4,1.02317]
[1733974220239,1.3424,3911.0,3909.8,1.02306]
[1733974220442,1.3424,3911.0,3910.3,1.02292]
[1733974220638,1.3424,3911.0,3909.4,1.02316]
[1733974220839,1.3424,3911.0,3910.7,1.02282]
[1733974221249,1.3424,3911.0,3910.0,0.255754]
[1733974221457,1.3424,3911.0,3910.1,0.1278794]
[1733974221658,1.3424,3911.0,3910.5,1.02287]
[1733974222269,1.3424,3911.0,3910.4,1.0229]
[1733974222484,1.3424,3911.0,3910.8,1.02279]
[1733974222685,1.4,3912.2,3910.1,0.3506]
[1733974222867,1.4,3912.0,3910.0,1.278764]
[1733974223051,0.03196253,3911.9,3910.1,0.1278764]
[1733974223253,1.4,3911.8,3910.1,0.1278764]
[1733974223452,0.25,3912.8,3910.0,0.255754]
[1733974223453,1.4,3911.4,3910.0,0.255754]
[1733974223657,0.03196695,3911.3,3910.0,0.255754]
[1733974224375,1.4,3911.2,3910.0,0.255754]
[1733974224691,0.03196807,3911.1,3910.0,1.278764]
[1733974225215,0.03196807,3911.1,3910.0,0.255754]
[1733974225768,1.43196936,3911.2,3910.0,0.255754]
[1733974225970,1.5751663,3911.2,3910.0,0.255754]
[1733974226200,1.4,3910.3,3910.0,0.255754]
[1733974226367,0.03197538,3910.2,3910.0,0.255754]
[1733974226566,2.58939538,3910.2,3910.0,0.255754]
[1733974226799,1.4,3910.3,3910.0,0.255754]
[1733974227021,2.69741,3910.2,3910.0,0.255754]
[1733974227171,0.14,3910.2,3910.0,0.255754]
[1733974227612,1.4,3910.3,3910.0,0.255754]
[1733974229023,1.4,3911.4,3910.0,0.255754]
[1733974229174,1.4,3911.4,3910.3,1.02291]
[1733974229371,3.95666,3911.4,3910.0,0.255754]
[1733974229571,1.795666,3911.4,3910.0,0.255754]
[1733974229804,0.0319664,3912.2,3910.0,0.255754]
[1733974229805,1.4,3910.4,3910.0,0.255754]
[1733974230022,2.58933409,3910.3,3910.0,0.255754]
[1733974230340,1.4,3910.1,3910.0,0.255754]
[1733974230531,1.43197723,3910.1,3910.0,0.255754]
[1733974230828,1.4,3909.6,3908.4,1.02343]
[1733974231144,0.0319798,3909.5,3907.6,4.08116051]
[1733974231310,1.4,3909.4,3908.2,1.02348]
[1733974231627,1.4,3909.4,3907.6,1.14879122]
[1733974231834,0.01929483,3909.3,3907.9,1.02355]
[1733974232043,0.01929483,3909.3,3906.9,1.02345]
[1733974232044,1.4,3909.2,3906.9,1.02345]
[1733974232193,1.4,3908.3,3906.7,1.02388]
[1733974232389,1.4,3907.8,3906.3,1.02398]
[1733974232600,1.4,3907.8,3906.6,1.02389]
[1733974232805,1.4,3907.8,3906.7,1.02386]
[1733974233217,1.4,3907.8,3905.9,3.0]
[1733974233438,1.4,3907.8,3906.0,3.70811605]
[1733974233620,0.01929483,3907.7,3906.3,1.02397]
[1733974233826,1.4,3907.6,3906.3,1.02396]
[1733974233987,1.4,3907.6,3906.7,1.02388]
[1733974234185,1.4,3907.6,3906.0,0.70811605]
[1733974234385,0.23591869,3908.7,3905.6,0.62]
[1733974234386,1.4,3907.4,3905.6,0.62]
[1733974234632,1.4,3907.4,3906.8,1.02384]
[1733974234846,1.4,3907.4,3905.8,3.95598929]
[1733974235052,0.01929483,3907.3,3905.8,3.95598929]
[1733974235374,0.01929483,3907.3,3905.7,1.023772]
[1733974235375,1.4,3907.2,3905.7,1.023772]
[1733974235499,1.4,3907.2,3905.8,0.2047932]
[1733974235828,0.01929483,3908.0,3905.6,3.45517138]
[1733974236031,1.4,3907.4,3905.9,1.02407]
[1733974236228,0.01929483,3907.3,3905.9,1.02407]
[1733974236599,1.4,3907.1,3905.1,3.45517138]
[1733974236805,0.16122431,3907.0,3905.2,0.34551714]
[1733974237120,2.55963,3906.8,3904.6,1.024035]
[1733974237302,0.16122431,3907.0,3904.6,1.024035]
[1733974237303,1.4433,3906.2,3904.6,1.024035]
[1733974237537,0.01929483,3906.1,3904.8,1.02437]
[1733974237742,1.4433,3906.0,3903.8,0.1631989]
[1733974237992,1.4433,3906.0,3903.9,1.02461]
[1733974237993,1.4433,3905.8,3903.9,1.02461]
[1733974238194,1.4433,3905.8,3904.3,3.45517138]
[1733974238341,1.4433,3905.8,3903.8,0.1631989]
[1733974238342,1.4433,3906.5,3905.3,3.45517138]
[1733974238682,2.55843,3908.7,3904.9,1.02435]
[1733974238683,1.4433,3908.1,3906.6,1.02389]
[1733974238908,1.4433,3908.1,3905.8,3.45517138]
[1733974238909,1.46259483,3908.1,3907.0,1.02378]
[1733974239038,1.46259483,3908.1,3906.4,1.02396]
[1733974239388,1.4433,3908.1,3907.3,1.0237]
[1733974239567,1.4433,3908.1,3906.9,1.02382]
[1733974239778,1.4433,3908.1,3906.4,3.0]
[1733974239935,1.4433,3908.1,3906.5,0.70751714]
[1733974240137,1.4433,3908.1,3907.3,1.02371]
[1733974240338,1.4433,3908.1,3906.9,1.02382]
[1733974240775,1.4433,3908.1,3906.5,0.70751714]
[1733974241197,0.01929483,3908.0,3906.7,1.02387]
[1733974241399,0.42142731,3908.0,3906.7,1.02387]
[1733974241603,1.4433,3908.1,3906.8,3.45517138]
[1733974241901,0.01929483,3908.0,3906.8,4.47902138]
[1733974242102,1.4433,3908.1,3907.7,1.0236]
[1733974242328,1.4433,3908.1,3906.9,1.02382]
[1733974242598,1.4433,3908.1,3906.8,3.45517138]
[1733974242599,1.4433,3908.1,3907.0,0.44789914]
[1733974242756,1.4433,3908.1,3907.1,1.02376]
[1733974242958,0.01929483,3908.0,3906.4,3.12570953]
[1733974243192,0.01929483,3908.0,3906.6,1.02389]
[1733974243501,0.01929483,3908.0,3906.7,1.02386]
[1733974243659,1.4433,3908.1,3906.9,1.02381]
[1733974243985,1.4433,3908.1,3906.9,3.45517138]
[1733974244184,1.4249,3908.6,3908.0,1.02353]
[1733974244557,1.4249,3908.6,3907.5,1.02367]
[1733974244558,1.4249,3908.6,3907.5,3.55]
[1733974244759,1.4249,3909.7,3908.3,1.02344]
[1733974245013,1.4249,3909.7,3907.9,4.47873138]
[1733974245356,1.4249,3909.7,3909.0,1.02326]
[1733974245813,1.4249,3909.7,3908.4,3.45517138]
[1733974246009,0.01929483,3911.1,3909.4,3.45517138]
[1733974246214,1.4249,3911.0,3909.5,3.62]
[1733974246508,1.4249,3911.0,3909.9,3.45517138]
[1733974246671,1.4249,3910.6,3909.4,3.45517138]
[1733974246873,0.01929483,3910.5,3909.0,1.02326]
[1733974247189,0.01929483,3910.5,3909.1,0.44784314]
[1733974247190,2.97666131,3910.5,3909.1,0.44784314]
[1733974247360,2.97666131,3910.5,3909.0,1.02326]
[1733974247556,0.41943131,3910.5,3908.7,0.12716696]
[1733974248013,1.4249,3910.4,3908.6,3.0]
[1733974248213,1.4249,3910.2,3908.6,3.0]
[1733974248383,0.01929483,3910.1,3908.9,1.02329]
[1733974248708,0.01929483,3910.1,3908.7,0.73054318]
[1733974248709,1.4249,3910.2,3909.0,1.02325]
[1733974249092,0.01929483,3910.1,3909.0,1.02325]
[1733974249406,1.44419483,3910.2,3908.7,1.75388318]
[1733974249561,1.44419483,3910.2,3907.9,4.57991468]
[1733974249562,1.4249,3910.1,3907.9,4.57991468]
[1733974249761,2.55796,3909.4,3907.4,0.62]
[1733974249958,1.4249,3909.2,3907.4,0.62]
[1733974250199,0.01929483,3909.1,3907.5,0.96036547]
[1733974250409,0.01929483,3909.1,3908.0,1.02353]
[1733974250592,1.4249,3909.2,3907.9,3.95991468]
[1733974250781,1.4249,3909.2,3908.5,1.02338]
[1733974251117,1.4249,3909.2,3908.8,1.02331]
[1733974251465,1.4249,3909.2,3908.5,1.02339]
[1733974252013,1.4249,3909.2,3908.0,3.0]
[1733974252180,0.01929483,3909.1,3907.3,3.95991468]
[1733974252383,1.4249,3909.2,3908.1,1.02349]
[1733974252585,1.4249,3909.2,3908.1,1.0235]
[1733974252916,1.4249,3909.2,3907.9,3.95991468]
[1733974253121,1.4249,3909.2,3908.5,1.0234]
[1733974253472,1.4249,3909.2,3908.8,1.02332]
[1733974253683,1.4249,3909.2,3908.1,0.02558354]
[1733974253887,1.4249,3909.2,3908.0,3.0]
[1733974253888,0.01929483,3909.1,3908.2,0.69854982]
[1733974254072,0.01929483,3909.1,3908.0,3.0]
[1733974254282,1.4249,3909.2,3908.0,3.0]
[1733974254813,1.44419483,3909.2,3908.0,3.0]
[1733974255111,1.4249,3909.2,3908.0,3.0]
[1733974255312,1.4249,3909.2,3908.3,1.02345]
[1733974255476,1.4249,3909.2,3908.4,1.02342]
[1733974255672,1.4249,3909.2,3908.3,0.402345]
[1733974255904,1.4431,3909.7,3908.9,1.02329]
[1733974256114,1.4431,3909.7,3909.1,1.02324]
[1733974256418,1.4431,3909.7,3908.6,3.02557928]
[1733974256623,1.4431,3909.7,3909.0,1.02325]
[1733974256823,1.4431,3909.7,3908.7,0.7597094]
[1733974256972,1.4431,3909.7,3909.1,1.02324]
[1733974257174,1.4431,3909.7,3908.7,1.7830494]
[1733974257376,1.4431,3909.7,3907.9,4.57151468]
[1733974257696,1.4431,3909.7,3908.4,1.02342]
[1733974257875,1.46239483,3909.7,3908.4,1.02342]
[1733974258070,0.01929483,3909.6,3908.4,1.02342]
[1733974258276,1.46239483,3909.7,3908.5,3.95991468]
[1733974258474,1.4431,3909.7,3908.6,3.39599147]
[1733974258727,1.46239483,3910.9,3908.7,1.02335]
[1733974258910,1.46239483,3910.9,3909.2,3.95991468]